[Event "WYCC U16 Girls 2019"]
[Site "Mumbai"]
[Date "2019.10.06"]
[Round "6.5"]
[White "Beydullayeva, Govhar"]
[Black "Juhasz, Judit"]
[Result "1-0"]
[ECO "E64"]
[WhiteElo "2289"]
[BlackElo "2004"]
[Annotator "ChessBase"]
[PlyCount "83"]
[EventDate "2019.10.02"]
[EventType "swiss"]
[EventCountry "IND"]
[SourceTitle "playchess.com"]
[Source "ChessBase"]
[SourceQuality "1"]
[TimeControl "5400+30"]

1. d4 {[%emt 0:00:00]} Nf6 {[%emt 0:00:00]} 2. c4 {[%emt 0:00:00]} g6 {[%emt 0:00:00]} 3. Nf3 {[%emt 0:00:00]} Bg7 {[%emt 0:00:00]} 4. g3 {[%emt 0:00:00]} O-O {[%emt 0:00:01]} 5. Bg2 {[%emt 0:00:00]} d6 {[%emt 0:00:11]} 6. Nc3 {[%emt 0:00:00]} c5 {[%emt 0:00:10]} 7. dxc5 {[%emt 0:00:23]} dxc5 {[%emt 0:00:07]} 8. O-O {[%emt 0:00:13]} Nc6 {[%emt 0:00:10]} 9. Be3 {[%emt 0:00:18]} Qa5 {[%emt 0:00:16]} 10. Qb3 {[%emt 0:01:17]} Ng4 {[%emt 0:00:57]} 11. Bf4 {[%emt 0:00:37]} e5 {[%emt 0:05:48]} 12. Bd2 {[%emt 0:11:46]} Nd4 {[%emt 0:06:19]} 13. Nxd4 {[%emt 0:00:06]} cxd4 {[%emt 0:02:40]} 14. Qb5 {[%emt 0:03:52]} Qxb5 {[%emt 0:05:36]} 15. Nxb5 {[%emt 0:00:39]} a6 {[%emt 0:01:52]} 16. Nd6 {[%emt 0:02:45]} Rb8 {[%emt 0:04:53]} 17. c5 {[%emt 0:07:17]} Nf6 {[%emt 0:05:48]} 18. Rac1 {[%emt 0:04:48]} Nd7 {[%emt 0:09:47]} 19. b3 {[%emt 0:12:05]} Bf6 {[%emt 0:03:16]} 20. Bh3 {[%emt 0:23:11]} Nb6 {[%emt 0:01:12]} 21. Nxc8 {[%emt 0:01:34]} Nxc8 {[%emt 0:00:06]} 22. c6 {[%emt 0:00:15]} Be7 {[%emt 0:06:34]} 23. Bh6 {[%emt 0:03:24]} f5 {[%emt 0:05:22]} 24. Bxf8 {[%emt 0:00:46]} Kxf8 {[%emt 0:00:10]} 25. c7 {[%emt 0:01:18]} Ra8 {[%emt 0:00:06]} 26. g4 {[%emt 0:00:13]} f4 {[%emt 0:02:44]} 27. Bg2 {[%emt 0:00:28]} Ra7 {[%emt 0:00:09]} 28. Bd5 {[%emt 0:09:54]} Ke8 {[%emt 0:07:14]} 29. Be6 {[%emt 0:04:26]} Ra8 {[%emt 0:00:13]} 30. Kg2 {[%emt 0:00:47]} Ba3 {[%emt 0:04:14]} 31. Rc2 {[%emt 0:02:18]} Ke7 {[%emt 0:00:14]} 32. Bd5 {[%emt 0:00:06]} Ra7 {[%emt 0:01:03]} 33. Kf3 {[%emt 0:01:10]} Bd6 {[%emt 0:09:51]} 34. h4 {[%emt 0:00:49]} h6 {[%emt 0:05:13]} 35. Be4 {[%emt 0:01:12]} Kf7 {[%emt 0:01:04]} 36. Rd1 {[%emt 0:01:28]} Be7 {[%emt 0:09:01]} 37. e3 {[%emt 0:00:41]} fxe3 {[%emt 0:00:47]} 38. fxe3 {[%emt 0:00:05]} Bf6 {[%emt 0:00:17]} 39. Ke2 {[%emt 0:01:20]} g5 {[%emt 0:04:19]} 40. hxg5 {[%emt 0:00:53]} hxg5 {[%emt 0:00:04]} 41. Rh1 {[%emt 0:00:08]} Bg7 {[%emt 0:00:39]} 42. Rcc1 {[%emt 0:00:16]} 1-0

[Event "WYCC U16 Girls 2019"]
[Site "Mumbai"]
[Date "2019.10.06"]
[Round "6.6"]
[White "Jain Nityata"]
[Black "Bulatova, Kamaliya"]
[Result "0-1"]
[ECO "B51"]
[WhiteElo "2029"]
[BlackElo "2181"]
[Annotator "ChessBase"]
[PlyCount "114"]
[EventDate "2019.10.02"]
[EventType "swiss"]
[EventCountry "IND"]
[SourceTitle "playchess.com"]
[Source "ChessBase"]
[SourceQuality "1"]
[TimeControl "5400+30"]

1. e4 {[%emt 0:00:00]} c5 {[%emt 0:00:00]} 2. Nf3 {[%emt 0:00:00]} d6 {[%emt 0:00:00]} 3. Bb5+ {[%emt 0:00:00]} Nd7 {[%emt 0:00:00]} 4. O-O {[%emt 0:00:00]} a6 {[%emt 0:00:03]} 5. Bd3 {[%emt 0:00:05]} Ngf6 {[%emt 0:00:09]} 6. Re1 {[%emt 0:00:32]} b5 {[%emt 0:00:13]} 7. c4 {[%emt 0:00:13]} Rb8 {[%emt 0:00:36]} 8. Nc3 {[%emt 0:03:32]} b4 {[%emt 0:00:37]} 9. Nd5 {[%emt 0:01:03]} e5 {[%emt 0:02:36]} 10. Bc2 {[%emt 0:03:17]} g6 {[%emt 0:02:24]} 11. d3 {[%emt 0:03:27]} Nxd5 {[%emt 0:12:48]} 12. exd5 {[%emt 0:10:04]} Bg7 {[%emt 0:00:34]} 13. d4 {[%emt 0:04:03]} O-O {[%emt 0:02:23]} 14. dxc5 {[%emt 0:05:54]} Nxc5 {[%emt 0:02:37]} 15. Be3 {[%emt 0:10:17]} Qc7 {[%emt 0:06:04]} 16. Qd2 {[%emt 0:02:32]} Re8 {[%emt 0:09:18]} 17. Bh6 {[%emt 0:04:23]} Bh8 {[%emt 0:03:33]} 18. Rac1 {[%emt 0:03:37]} f5 {[%emt 0:11:56]} 19. h4 {[%emt 0:04:57]} Qf7 {[%emt 0:04:10]} 20. h5 {[%emt 0:14:04]} e4 {[%emt 0:14:05]} 21. Nd4 {[%emt 0:03:00]} Bd7 {[%emt 0:06:08]} 22. hxg6 {[%emt 0:00:50]} hxg6 {[%emt 0:03:08]} 23. Rcd1 {[%emt 0:01:41]} Qh7 {[%emt 0:01:50]} 24. Bf4 {[%emt 0:04:34]} Be5 {[%emt 0:01:46]} 25. Nc6 {[%emt 0:04:01]} Bxc6 {[%emt 0:03:27]} 26. dxc6 {[%emt 0:00:03]} Ne6 {[%emt 0:02:40]} 27. Bxe5 {[%emt 0:02:06]} dxe5 {[%emt 0:00:06]} 28. Qd5 {[%emt 0:04:15]} Qc7 {[%emt 0:00:24]} 29. c5 {[%emt 0:07:27]} Rbd8 {[%emt 0:01:32]} 30. Qc4 {[%emt 0:00:07]} Kg7 {[%emt 0:02:31]} 31. Rxd8 {[%emt 0:02:43]} Nxd8 {[%emt 0:00:17]} 32. Rd1 {[%emt 0:00:41]} Nxc6 {[%emt 0:03:05]} 33. Ba4 {[%emt 0:00:33]} Rd8 {[%emt 0:01:06]} 34. Rd6 {[%emt 0:02:19]} Nd4 {[%emt 0:01:45]} 35. Qxa6 {[%emt 0:00:33]} Rxd6 {[%emt 0:00:31]} 36. Qxd6 {[%emt 0:00:17]} Qxd6 {[%emt 0:00:55]} 37. cxd6 {[%emt 0:00:05]} Kf6 {[%emt 0:00:05]} 38. Kf1 {[%emt 0:00:57]} Ne6 {[%emt 0:01:03]} 39. Be8 {[%emt 0:00:42]} g5 {[%emt 0:00:57]} 40. a3 {[%emt 0:00:25]} bxa3 {[%emt 0:00:53]} 41. bxa3 {[%emt 0:00:06]} Nc5 {[%emt 0:01:16]} 42. a4 {[%emt 0:00:00]} Ke6 {[%emt 0:00:00]} 43. d7 {[%emt 0:00:00]} Nxd7 {[%emt 0:00:00]} 44. a5 {[%emt 0:00:00]} Nc5 {[%emt 0:00:00]} 45. Bb5 {[%emt 0:00:00]} Kd6 {[%emt 0:00:00]} 46. Ke1 {[%emt 0:00:00]} Kc7 {[%emt 0:00:00]} 47. g3 {[%emt 0:00:24]} f4 {[%emt 0:00:00]} 48. gxf4 {[%emt 0:01:17]} gxf4 {[%emt 0:00:00]} 49. Be8 {[%emt 0:00:54]} Kb7 {[%emt 0:00:00]} 50. Kd2 {[%emt 0:00:57]} Ka6 {[%emt 0:00:00]} 51. Kc3 {[%emt 0:00:13]} Kxa5 {[%emt 0:00:00]} 52. Kc4 {[%emt 0:00:32]} Nd3 {[%emt 0:00:00]} 53. Kd5 {[%emt 0:00:46]} e3 {[%emt 0:00:00]} 54. fxe3 {[%emt 0:00:21]} fxe3 {[%emt 0:00:00]} 55. Bh5 {[%emt 0:01:14]} Nf4+ {[%emt 0:00:00]} 56. Ke4 {[%emt 0:00:11]} Nxh5 {[%emt 0:00:00]} 57. Kxe3 {[%emt 0:00:06]} Nf6 {[%emt 0:00:00] Kd4} 0-1

[Event "WYCC U16 Girls 2019"]
[Site "Mumbai"]
[Date "2019.10.06"]
[Round "6.7"]
[White "Demchenko, Svitlana"]
[Black "Dahampriya, H K T Dewnethmie"]
[Result "1-0"]
[ECO "B90"]
[WhiteElo "1953"]
[BlackElo "1629"]
[Annotator "NA"]
[PlyCount "121"]
[EventDate "2019.10.02"]
[EventType "swiss"]
[EventCountry "IND"]
[SourceTitle "playchess.com"]
[Source "ChessBase"]
[SourceQuality "1"]
[TimeControl "5400+30"]

1. e4 {[%emt 0:00:00]} c5 {[%emt 0:00:00]} 2. Nf3 {[%emt 0:00:00]} d6 {[%emt 0:00:00]} 3. d4 {[%emt 0:00:00]} cxd4 {[%emt 0:00:00]} 4. Nxd4 {[%emt 0:00:00]} Nf6 {[%emt 0:00:00]} 5. Nc3 {[%emt 0:00:13]} a6 {[%emt 0:00:00]} 6. Be3 {[%emt 0:00:13]} e5 {[%emt 0:00:00]} 7. Nb3 {[%emt 0:00:15]} Be6 {[%emt 0:00:04]} 8. f3 {[%emt 0:00:29]} Nbd7 {[%emt 0:00:21]} 9. Qd2 {[%emt 0:00:22]} h5 {[%emt 0:00:21]} 10. O-O-O {[%emt 0:00:44]} Rc8 {[%emt 0:00:09]} 11. Kb1 {[%emt 0:00:57]} Be7 {[%emt 0:00:33]} 12. Nd5 {[%emt 0:07:40]} Bxd5 {[%emt 0:00:15]} 13. exd5 {[%emt 0:00:10]} Nb6 {[%emt 0:00:11]} 14. Bxb6 {[%emt 0:00:59]} Qxb6 {[%emt 0:00:02]} 15. c4 {[%emt 0:00:48]} O-O {[%emt 0:03:38]} 16. Bd3 {[%emt 0:03:49]} Rfe8 {[%emt 0:01:01]} 17. Rhe1 {[%emt 0:09:02]} g6 {[%emt 0:00:42]} 18. f4 {[%emt 0:09:15]} e4 {[%emt 0:09:41]} 19. Bxe4 {[%emt 0:02:23]} Rxc4 {[%emt 0:00:13]} 20. Qd3 {[%emt 0:04:35]} Rxe4 {[%emt 0:02:18]} 21. Rxe4 {[%emt 0:00:14]} Nxe4 {[%emt 0:00:07]} 22. Qxe4 {[%emt 0:00:10]} Kf8 {[%emt 0:01:33]} 23. Re1 {[%emt 0:04:34]} Qd8 {[%emt 0:00:38]} 24. a3 {[%emt 0:13:45]} Bh4 {[%emt 0:01:23]} 25. Qxe8+ {[%emt 0:00:10]} Qxe8 {[%emt 0:00:03]} 26. Rxe8+ {[%emt 0:00:02]} Kxe8 {[%emt 0:00:03]} 27. Na5 {[%emt 0:01:46]} b5 {[%emt 0:02:30]} 28. Nc6 {[%emt 0:05:27]} Bf2 {[%emt 0:01:00]} 29. b4 {[%emt 0:07:46]} Bg1 {[%emt 0:02:58]} 30. h3 {[%emt 0:00:39]} Bb6 {[%emt 0:00:41]} 31. Kc2 {[%emt 0:01:45]} f5 {[%emt 0:00:09]} 32. Kd3 {[%emt 0:00:29]} Kf7 {[%emt 0:00:47]} 33. Ke2 {[%emt 0:00:33]} Kf6 {[%emt 0:00:14]} 34. Kd3 {[%emt 0:08:20]} Kf7 {[%emt 0:01:37]} 35. Kd2 {[%emt 0:00:50]} Ke8 {[%emt 0:00:54]} 36. Kd3 {[%emt 0:06:30]} Kf7 {[%emt 0:00:15]} 37. Nb8 {[%emt 0:04:11]} a5 {[%emt 0:00:13]} 38. bxa5 {[%emt 0:01:10]} Bxa5 {[%emt 0:00:08]} 39. Nc6 {[%emt 0:00:19]} Be1 {[%emt 0:02:14]} 40. Nd4 {[%emt 0:02:00]} b4 {[%emt 0:00:27]} 41. Nc2 {[%emt 0:03:57]} Bg3 {[%emt 0:00:21]} 42. axb4 {[%emt 0:00:00]} Bxf4 {[%emt 0:00:00]} 43. b5 {[%emt 0:00:00]} Ke7 {[%emt 0:00:00]} 44. b6 {[%emt 0:00:00]} Kd7 {[%emt 0:00:00]} 45. Kc4 {[%emt 0:00:00]} Kc8 {[%emt 0:00:00]} 46. Kb5 {[%emt 0:00:00]} Kb7 {[%emt 0:00:00]} 47. Na3 {[%emt 0:00:00]} Be3 {[%emt 0:00:00]} 48. Nc4 {[%emt 0:00:00]} Bxb6 {[%emt 0:00:00]} 49. Nxb6 {[%emt 0:00:00]} g5 {[%emt 0:00:00]} 50. Nc4 {[%emt 0:00:00]} Kc7 {[%emt 0:00:00]} 51. Ne3 {[%emt 0:00:00]} f4 {[%emt 0:00:00]} 52. Nf5 {[%emt 0:00:00]} g4 {[%emt 0:00:00]} 53. Kc4 {[%emt 0:00:00]} f3 {[%emt 0:00:00]} 54. gxf3 {[%emt 0:00:00]} gxh3 {[%emt 0:00:00]} 55. Ng3 {[%emt 0:00:00]} h4 {[%emt 0:00:00]} 56. Nh1 {[%emt 0:00:00]} Kd7 {[%emt 0:00:00]} 57. Kd4 {[%emt 0:00:00]} Ke7 {[%emt 0:00:00]} 58. Ke4 {[%emt 0:00:00]} Kf6 {[%emt 0:00:00]} 59. Kf4 {[%emt 0:00:00]} h2 {[%emt 0:00:00]} 60. Nf2 {[%emt 0:00:00]} h3 {[%emt 0:00:00]} 61. Ng4+ {[%emt 0:00:00]} 1-0

[Event "WYCC U16 Girls 2019"]
[Site "Mumbai"]
[Date "2019.10.06"]
[Round "6.8"]
[White "Lakshmi C"]
[Black "Mrudul Dehankar"]
[Result "0-1"]
[ECO "E22"]
[WhiteElo "1859"]
[BlackElo "2227"]
[Annotator "ChessBase"]
[PlyCount "146"]
[EventDate "2019.10.02"]
[EventType "swiss"]
[EventCountry "IND"]
[SourceTitle "playchess.com"]
[Source "ChessBase"]
[SourceQuality "1"]
[TimeControl "5400+30"]

1. d4 Nf6 2. c4 e6 3. Nc3 Bb4 4. Qb3 Bxc3+ 5. bxc3 b6 6. f3 Nc6 7. e4 e5 8. d5 Na5 9. Qa4 Nb7 10. Nh3 Nc5 11. Qc2 d6 12. Nf2 O-O 13. g4 Qe8 14. Bg5 Nfd7 15. h4 Nb7 16. Nd1 Ndc5 17. Nb2 c6 18. Be2 cxd5 19. cxd5 Bd7 20. h5 f6 21. Be3 Rc8 22. O-O Qe7 23. Qd2 Rc7 24. Rac1 Rfc8 25. Rf2 Be8 26. Rg2 Kh8 27. Rh2 h6 28. Kh1 Nd8 29. Rg1 Nf7 30. Qe1 Qd7 31. Bd2 Na4 32. Nd1 b5 33. Qf2 Qe7 34. Re1 Ng5 35. Bf1 Nc5 36. Ne3 Bd7 37. Nf5 Qf8 38. Nh4 Kg8 39. Re3 Be8 40. Qe1 Qe7 41. Rf2 Qd7 42. Nf5 Bf7 43. Bg2 Na4 44. f4 exf4 45. Rxf4 Nb6 46. Rg3 Nc4 47. Bc1 Re8 48. Qf1 Rcc8 49. Nxh6+ gxh6 50. Rxf6 Nxe4 51. Bxe4 Rxe4 52. Qf5 Qxf5 53. gxf5+ Kf8 54. Bxh6+ Ke7 55. Bg5 Bxd5 56. Kh2 Kd7 57. h6 Re1 58. Rg1 Re2+ 59. Kh3 Ne5 60. h7 Nf3 61. Rg4 Rh8 62. Rh6 Rh2+ 63. Kg3 Rxh6 64. Bxh6 Rxh7 65. Bf4 Rf7 66. Rg6 Ne5 67. Bxe5 dxe5 68. Ra6 Rxf5 69. Rxa7+ Kd6 70. a4 Rf3+ 71. Kh2 bxa4 72. Rxa4 Rxc3 73. Kg1 e4 0-1

[Event "WYCC U16 Girls 2019"]
[Site "Mumbai"]
[Date "2019.10.06"]
[Round "6.9"]
[White "Zhang, Xiao"]
[Black "Skaslien, Ingrid"]
[Result "1/2-1/2"]
[ECO "D30"]
[WhiteElo "2053"]
[BlackElo "1875"]
[Annotator "NA"]
[PlyCount "106"]
[EventDate "2019.10.02"]
[EventType "swiss"]
[EventCountry "IND"]
[SourceTitle "playchess.com"]
[Source "ChessBase"]
[SourceQuality "1"]
[TimeControl "5400+30"]

1. d4 {[%emt 0:00:00]} d5 {[%emt 0:00:05]} 2. c4 {[%emt 0:00:00]} e6 {[%emt 0:00:08]} 3. Nf3 {[%emt 0:00:01]} Nf6 {[%emt 0:00:16]} 4. e3 {[%emt 0:00:47]} Be7 {[%emt 0:01:10]} 5. Nc3 {[%emt 0:00:22]} O-O {[%emt 0:00:31]} 6. b3 {[%emt 0:03:01]} c5 {[%emt 0:05:23] D37: Queen's Gambit Declined: 5 Bf4} 7. cxd5 {[%emt 0:06:36]} (7. Bb2 cxd4 8. Nxd4 a6 9. a3 dxc4 10. Bxc4 b5 11. Be2 Bb7 12. Bf3 Qb6 13. Bxb7 Qxb7 14. Qf3 Qxf3 15. gxf3 Rc8 16. Ke2 {½-½ (16) Andreikin,D (2719)-Matlakov,M (2700) St Petersburg 2018}) 7... Nxd5 {[%emt 0:07:24]} 8. Nxd5 {[%emt 0:00:13]} Qxd5 {[%emt 0:00:20]} 9. Bc4 {[%emt 0:00:15]} Qd8 {[%emt 0:00:27]} 10. O-O {[%emt 0:01:04]} Nc6 $146 {[%emt 0:01:05]} ({Predecessor:} 10... a6 11. Qc2 Nd7 12. a4 cxd4 13. Nxd4 Bf6 14. Ba3 Re8 15. Rfd1 {½-½ (49) Bulatkhanova,B (2107)-Vombek,S (1822) Herceg Novi 2006}) 11. Bb2 {[%emt 0:01:17]} cxd4 {[%emt 0:07:58]} 12. Nxd4 {[%emt 0:04:35]} Nxd4 {[%emt 0:05:40]} 13. Bxd4 {[%emt 0:01:24]} Bf6 {[%emt 0:00:17]} 14. Bxf6 {[%emt 0:06:58]} Qxf6 {[%emt 0:00:08]} 15. Qd6 {[%emt 0:10:03]} Rd8 {[%emt 0:06:27]} 16. Qc7 {[%emt 0:00:10]} Rd7 {[%emt 0:01:26]} 17. Qc5 {[%emt 0:00:12]} Qd8 {[%emt 0:03:11]} 18. Rac1 {[%emt 0:02:59]} b6 {[%emt 0:04:36]} 19. Qe5 {[%emt 0:01:08]} Bb7 {[%emt 0:02:41]} 20. Bb5 {[%emt 0:05:38]} Rd5 {[%emt 0:10:56]} 21. Qc7 {[%emt 0:00:22]} Qb8 {[%emt 0:16:45]} 22. a4 {[%emt 0:03:27]} a6 {[%emt 0:05:52]} 23. Be2 {[%emt 0:04:55]} Rd2 {[%emt 0:04:19]} 24. Bh5 {[%emt 0:02:18]} g6 {[%emt 0:01:07]} 25. Qe7 {[%emt 0:02:16]} Be4 $14 {[%emt 0:05:34]} ({Black should try} 25... Bd5 $11) 26. Qb4 {[%emt 0:05:14]} Rd5 {[%emt 0:00:37]} 27. Be2 {[%emt 0:06:58]} Bd3 {[%emt 0:03:33]} 28. Bf3 {[%emt 0:06:47]} a5 {[%emt 0:00:54]} 29. Qc3 {[%emt 0:07:03]} Bxf1 {[%emt 0:00:28]} 30. Bxd5 {[%emt 0:00:15]} exd5 {[%emt 0:00:18]} 31. Rxf1 {[%emt 0:00:10]} Qc8 {[%emt 0:00:36]} 32. Qd2 {[%emt 0:06:25]} Qe6 {[%emt 0:01:21]} 33. Qd4 {[%emt 0:00:29]} Rc8 {[%emt 0:00:23]} 34. Rd1 {[%emt 0:00:59]} Rc5 {[%emt 0:00:09]} 35. h3 {[%emt 0:03:08]} Qc6 {[%emt 0:00:48]} 36. Rd3 {[%emt 0:01:14]} Qe6 {[%emt 0:01:28]} 37. Kh2 {[%emt 0:00:43]} Qe4 {[%emt 0:00:56]} 38. Qxe4 {[%emt 0:01:13]} dxe4 {[%emt 0:00:05]} 39. Rd8+ {[%emt 0:00:12]} Kg7 {[%emt 0:00:17]} 40. Rb8 {[%emt 0:00:09]} Rc6 {[%emt 0:00:19]} 41. Kg3 {[%emt 0:00:16]} Re6 {[%emt 0:01:13]} 42. Kf4 {[%emt 0:00:30]} h6 {[%emt 0:00:00]} 43. h4 {[%emt 0:00:00]} Rf6+ {[%emt 0:00:00]} 44. Kg3 {[%emt 0:00:00]} Re6 {[%emt 0:00:00]} 45. Rb7 {[%emt 0:00:00]} Kf6 {[%emt 0:00:00]} 46. Kg4 {[%emt 0:00:00]} Rd6 {[%emt 0:00:00]} 47. Rc7 {[%emt 0:00:00]} Re6 {[%emt 0:00:00]} 48. Rc4 {[%emt 0:00:00]} Ke5 {[%emt 0:00:00]} 49. Rc7 {[%emt 0:00:00]} f5+ {[%emt 0:00:00]} 50. Kg3 {[%emt 0:00:00]} g5 {[%emt 0:00:00]} 51. hxg5 {[%emt 0:00:00]} hxg5 {[%emt 0:00:00]} 52. Rg7 {[%emt 0:00:00]} Kf6 {[%emt 0:00:00]} 53. Rb7 {[%emt 0:00:00]} Ke5 {[%emt 0:00:00]} 1/2-1/2

[Event "WYCC U16 Girls 2019"]
[Site "Mumbai"]
[Date "2019.10.06"]
[Round "6.10"]
[White "Hajiyeva, Laman"]
[Black "Eesha Ajay Sarda"]
[Result "1-0"]
[ECO "E44"]
[WhiteElo "2038"]
[BlackElo "1744"]
[Annotator "NA"]
[PlyCount "175"]
[EventDate "2019.10.02"]
[EventType "swiss"]
[EventCountry "IND"]
[SourceTitle "playchess.com"]
[Source "ChessBase"]
[SourceQuality "1"]
[TimeControl "5400+30"]

1. d4 Nf6 2. c4 e6 3. Nc3 Bb4 4. e3 b6 5. Nge2 c5 6. a3 Ba5 7. Ng3 Bb7 8. f3 Bxc3+ 9. bxc3 O-O 10. Bd3 Nc6 11. O-O Na5 12. e4 d6 13. e5 dxe5 14. dxe5 Nd7 15. f4 f5 16. Ra2 Qc7 17. Rd2 Rad8 18. Re1 Nb8 19. Qa4 g6 20. Red1 Bc6 21. Qc2 Rd7 22. Nf1 Qd8 23. Be2 Rxd2 24. Rxd2 Qe7 25. Qd1 Nb7 26. Ne3 Rd8 27. Nd5 Qf8 28. Bf3 Kg7 29. Nc7 Qe7 30. Rxd8 Bxf3 31. gxf3 Qxc7 32. Rd3 Na5 33. Rd6 Kf7 34. Qf1 Nb7 35. Qh3 Kg8 36. Rd1 Qc6 37. Qf1 Qa4 38. h4 Qe8 39. Kg2 Nd7 40. Qd3 Nf8 41. Kh3 Kf7 42. Be3 Qa4 43. h5 Qxa3 44. h6 Ke8 45. Bf2 Qa4 46. Bh4 Qd7 47. Qb1 Qc6 48. Qb5 Qxb5 49. cxb5 Nd7 50. c4 Na5 51. Ra1 Nxc4 52. Rxa7 Ne3 53. Ra8+ Kf7 54. Rd8 Nf8 55. Bf6 g5 56. fxg5 Nd5 57. Kg3 Nc3 58. Rd6 Nd5 59. Kf2 c4 60. Ke2 Nc3+ 61. Kd2 Nxb5 62. Rxb6 Nd4 63. Rb7+ Kg6 64. Rg7+ Kh5 65. Ke3 Nb5 66. Rf7 Ng6 67. Rxh7 f4+ 68. Kd2 Nd4 69. Rg7 Nxf3+ 70. Kc3 Nfh4 71. Kxc4 f3 72. Kd3 Kg4 73. Ra7 Kg3 74. Ra1 Kg2 75. h7 f2 76. Ke2 Nf4+ 77. Ke3 Nd5+ 78. Ke4 Ng6 79. h8=Q Nxh8 80. Bxh8 f1=Q 81. Rxf1 Kxf1 82. g6 Ne7 83. g7 Ke2 84. Kf4 Kd3 85. Kg5 Ng8 86. Kg6 Kd4 87. Kf7 Nh6+ 88. Kxe6 {Kd5+} 1-0

[Event "WYCC U16 Girls 2019"]
[Site "Mumbai"]
[Date "2019.10.06"]
[Round "6.11"]
[White "Bristy Mukherjee"]
[Black "Djidjeli, Sarah"]
[Result "1/2-1/2"]
[ECO "A45"]
[WhiteElo "1852"]
[BlackElo "2017"]
[Annotator "NA"]
[PlyCount "85"]
[EventDate "2019.10.02"]
[EventType "swiss"]
[EventCountry "IND"]
[SourceTitle "playchess.com"]
[Source "ChessBase"]
[SourceQuality "1"]
[TimeControl "5400+30"]

1. d4 Nf6 2. Bg5 e6 3. e3 h6 4. Bh4 c5 5. c3 d5 6. Nd2 Nc6 7. f4 Be7 8. Bd3 Qb6 9. Rb1 Bd7 10. Ngf3 cxd4 11. exd4 Nh5 12. g3 Bxh4 13. Nxh4 Nf6 14. Nhf3 O-O-O 15. b4 Ng4 16. Qe2 Rhe8 17. b5 Na5 18. h3 Nf6 19. Ne5 Re7 20. Qf2 Be8 21. O-O Rc7 22. Rfc1 Nd7 23. c4 Nxe5 24. c5 Nxd3 25. cxb6 Rxc1+ 26. Rxc1+ Nxc1 27. bxa7 Kc7 28. Qe1 Nxa2 29. Qb1 b6 30. Qxa2 Bxb5 31. Qa3 Kb7 32. Qb4 Bc6 33. Qe7+ Rd7 34. Qf8 Kxa7 35. Qxg7 b5 36. Qf8 h5 37. g4 hxg4 38. hxg4 Rc7 39. Qa3 Kb6 40. Qc5+ Kb7 41. Qb4 Kb6 42. Qc5+ Kb7 43. Qb4 1/2-1/2

[Event "WYCC U16 Girls 2019"]
[Site "Mumbai"]
[Date "2019.10.06"]
[Round "6.12"]
[White "Achaya Vijayan"]
[Black "Moncada Correa, Sara"]
[Result "1-0"]
[ECO "D17"]
[WhiteElo "1585"]
[BlackElo "1939"]
[Annotator "NA"]
[PlyCount "67"]
[EventDate "2019.10.02"]
[EventType "swiss"]
[EventCountry "IND"]
[SourceTitle "playchess.com"]
[Source "ChessBase"]
[SourceQuality "1"]
[TimeControl "5400+30"]

1. d4 {[%emt 0:00:00]} d5 {[%emt 0:00:04]} 2. c4 {[%emt 0:00:00]} c6 {[%emt 0:00:52]} 3. Nf3 {[%emt 0:00:22]} Nf6 {[%emt 0:01:24]} 4. Nc3 {[%emt 0:00:19]} dxc4 {[%emt 0:01:22]} 5. a4 {[%emt 0:00:39]} Bf5 {[%emt 0:01:13]} 6. Ne5 {[%emt 0:01:46]} Nbd7 {[%emt 0:03:33]} 7. Nxc4 {[%emt 0:00:22]} Qc7 {[%emt 0:02:16]} 8. g3 {[%emt 0:02:10]} e5 {[%emt 0:03:00]} 9. dxe5 {[%emt 0:00:23]} Nxe5 {[%emt 0:01:19]} 10. Bf4 {[%emt 0:00:19]} Nfd7 {[%emt 0:02:33]} 11. Bg2 {[%emt 0:01:28]} g5 {[%emt 0:04:36]} 12. Ne3 {[%emt 0:02:32]} gxf4 {[%emt 0:03:52]} 13. Nxf5 {[%emt 0:00:06]} O-O-O {[%emt 0:00:48]} 14. Qc2 {[%emt 0:04:07]} Bc5 {[%emt 0:09:43]} 15. gxf4 {[%emt 0:07:14]} Rhg8 {[%emt 0:13:41]} 16. O-O {[%emt 0:02:50]} Ng6 {[%emt 0:05:23]} 17. e3 {[%emt 0:01:20]} Nf6 18. Kh1 {[%emt 0:11:31]} Kb8 {[%emt 0:12:10]} 19. Ne2 {[%emt 0:05:07]} Bb4 {[%emt 0:01:07]} 20. Qb3 {[%emt 0:02:29]} Qa5 {[%emt 0:11:31]} 21. Ned4 {[%emt 0:09:29]} Nd5 22. Rac1 {[%emt 0:04:27]} c5 {[%emt 0:14:10]} 23. Nb5 {[%emt 0:05:52]} a6 {[%emt 0:05:50]} 24. Nbd6 {[%emt 0:10:14]} Nc7 {[%emt 0:00:59]} 25. Nxb7 Qb6 {[%emt 0:00:05]} 26. Nxd8 {[%emt 0:00:44]} Rxd8 {[%emt 0:00:01]} 27. Rfd1 {[%emt 0:01:50]} Rf8 {[%emt 0:00:50]} 28. Rd6 {[%emt 0:01:13]} Qa5 {[%emt 0:00:19]} 29. Rd7 {[%emt 0:01:15]} Nh8 {[%emt 0:01:18]} 30. Rcd1 {[%emt 0:00:50]} Ka7 {[%emt 0:00:30]} 31. Qd5 {[%emt 0:01:24]} Qb6 {[%emt 0:00:18]} 32. Qe5 {[%emt 0:00:16]} Rc8 {[%emt 0:00:29]} 33. Ne7 {[%emt 0:01:36]} Re8 {[%emt 0:00:43]} 34. Rxc7+ {[%emt 0:00:11]} 1-0

[Event "WYCC U16 Girls 2019"]
[Site "Mumbai"]
[Date "2019.10.07"]
[Round "7.2"]
[White "Bulatova, Kamaliya"]
[Black "Nurgali, Nazerke"]
[Result "0-1"]
[ECO "E04"]
[WhiteElo "2181"]
[BlackElo "2194"]
[Annotator "ChessBase"]
[PlyCount "78"]
[EventDate "2019.10.02"]
[EventType "swiss"]
[EventCountry "IND"]
[SourceTitle "playchess.com"]
[Source "ChessBase"]
[SourceQuality "1"]
[TimeControl "5400+30"]

1. d4 {[%emt 0:00:00]} d5 {[%emt 0:00:00]} 2. c4 {[%emt 0:00:00]} e6 {[%emt 0:00:00]} 3. Nf3 {[%emt 0:00:00]} Nf6 {[%emt 0:00:00]} 4. g3 {[%emt 0:00:00]} dxc4 {[%emt 0:00:13]} 5. Bg2 {[%emt 0:01:08]} Nc6 {[%emt 0:00:19]} 6. Qa4 {[%emt 0:08:16]} Bb4+ {[%emt 0:00:46]} 7. Bd2 {[%emt 0:01:40]} Nd5 {[%emt 0:00:35]} 8. e3 {[%emt 0:19:51]} Bd7 {[%emt 0:06:48]} 9. Qc2 {[%emt 0:01:54]} Bxd2+ {[%emt 0:01:30]} 10. Nfxd2 {[%emt 0:03:47]} b5 {[%emt 0:02:05]} 11. O-O {[%emt 0:01:07]} O-O {[%emt 0:02:40]} 12. Ne4 {[%emt 0:03:39]} e5 {[%emt 0:13:20]} 13. Nc5 {[%emt 0:10:28]} Ndb4 {[%emt 0:00:30]} 14. Qd2 {[%emt 0:01:00]} exd4 {[%emt 0:01:19]} 15. a3 {[%emt 0:01:41]} Nd3 {[%emt 0:02:06]} 16. Nxd3 {[%emt 0:01:32]} cxd3 {[%emt 0:00:05]} 17. Qxd3 {[%emt 0:01:06]} Qf6 {[%emt 0:01:14]} 18. Nd2 {[%emt 0:06:53]} Rad8 {[%emt 0:01:21]} 19. Ne4 {[%emt 0:03:43]} Qf5 {[%emt 0:02:28]} 20. exd4 {[%emt 0:02:55]} Be6 {[%emt 0:01:03]} 21. d5 {[%emt 0:09:18]} Bxd5 {[%emt 0:04:44]} 22. Qxb5 {[%emt 0:01:54]} Ne5 {[%emt 0:01:11]} 23. f4 {[%emt 0:03:58]} Ng4 {[%emt 0:02:24]} 24. Qe2 {[%emt 0:01:18]} Rfe8 {[%emt 0:03:26]} 25. h3 {[%emt 0:06:59]} Nh6 {[%emt 0:02:21]} 26. g4 {[%emt 0:02:52]} Qe6 {[%emt 0:02:13]} 27. f5 {[%emt 0:02:03]} Qe5 {[%emt 0:02:56]} 28. Rae1 {[%emt 0:00:36]} f6 {[%emt 0:06:16]} 29. Qf2 {[%emt 0:00:33]} Bc4 {[%emt 0:02:41]} 30. Nd2 {[%emt 0:00:28]} Be2 {[%emt 0:01:56]} 31. Nc4 {[%emt 0:01:51]} Qb5 {[%emt 0:01:34]} 32. Rxe2 {[%emt 0:00:10]} Qxc4 {[%emt 0:00:03]} 33. Rc2 {[%emt 0:00:19]} Qd3 {[%emt 0:03:44]} 34. Rxc7 {[%emt 0:01:27]} Re2 {[%emt 0:01:37]} 35. Qxa7 {[%emt 0:01:01]} Qg3 {[%emt 0:00:50]} 36. Rxg7+ {[%emt 0:00:46]} Kf8 {[%emt 0:00:03]} 37. Qb7 {[%emt 0:00:34]} Rdd2 {[%emt 0:01:07]} 38. Kh1 {[%emt 0:01:20]} Qxg2+ {[%emt 0:00:27]} 39. Qxg2 {[%emt 0:00:04]} Rxg2 {[%emt 0:00:04]} 0-1